[Event "Titled Tuesday Blitz May 31 Late 2022"]
[White "Bibasa, Bob"]
[Black "Tregubov, Pavel V."]
[WhiteFideId "10000240"]
[BlackFideId "4115341"]
[WhiteElo "2032"]
[BlackElo "2341"]
[Result "0-1"]
[Round "09"]
[TimeControl "180+1"]
[Date "2022.06.01"]
[WhiteClock "0:00:10"]
[BlackClock "0:00:51"]

1. e4 {[%clk 0:03:00]}  e5 {[%clk 0:02:30]} 2. Nf3 {[%clk 0:02:59]}  Nf6 {[%clk 0:02:31]} 3. Nxe5 {[%clk 0:02:59]}  d6 {[%clk 0:02:31]} 4. Nf3 {[%clk 0:03:00]}  Nxe4 {[%clk 0:02:31]} 5. Nc3 {[%clk 0:03:00]}  Nf6 {[%clk 0:02:31]} 6. d4 {[%clk 0:02:57]}  Be7 {[%clk 0:02:31]} 7. Bd3 {[%clk 0:02:55]}  O-O {[%clk 0:02:31]} 8. O-O {[%clk 0:02:55]}  Bg4 {[%clk 0:02:32]} 9. h3 {[%clk 0:02:54]}  Bh5 {[%clk 0:02:32]} 10. Bg5 {[%clk 0:02:47]}  Re8 {[%clk 0:02:31]} 11. Re1 {[%clk 0:02:32]}  Nbd7 {[%clk 0:02:30]} 12. Be2 {[%clk 0:02:21]}  c6 {[%clk 0:02:29]} 13. Qd2 {[%clk 0:02:18]}  d5 {[%clk 0:02:24]} 14. Ne5 {[%clk 0:02:15]}  Bxe2 {[%clk 0:02:20]} 15. Rxe2 {[%clk 0:02:15]}  Nxe5 {[%clk 0:02:17]} 16. dxe5 {[%clk 0:02:15]}  Nd7 {[%clk 0:02:17]} 17. Bxe7 {[%clk 0:02:14]}  Qxe7 {[%clk 0:02:14]} 18. f4 {[%clk 0:02:14]}  Rad8 {[%clk 0:02:09]} 19. Rf1 {[%clk 0:02:11]}  f5 {[%clk 0:02:01]} 20. a3 {[%clk 0:01:57]}  Nc5 {[%clk 0:01:59]} 21. Qd4 {[%clk 0:01:54]}  b6 {[%clk 0:01:51]} 22. b4 {[%clk 0:01:35]}  Ne6 {[%clk 0:01:40]} 23. Qf2 {[%clk 0:01:33]}  d4 {[%clk 0:01:39]} 24. Nd1 {[%clk 0:01:32]}  c5 {[%clk 0:01:38]} 25. b5 {[%clk 0:01:24]}  c4 {[%clk 0:01:36]} 26. Nb2 {[%clk 0:01:19]}  Qc5 {[%clk 0:01:36]} 27. a4 {[%clk 0:01:08]}  Qb4 {[%clk 0:01:36]} 28. c3 {[%clk 0:00:45]}  dxc3 {[%clk 0:01:33]} 29. Nd1 {[%clk 0:00:45]}  Rd3 {[%clk 0:01:22]} 30. Rc2 {[%clk 0:00:36]}  Red8 {[%clk 0:01:15]} 31. Ne3 {[%clk 0:00:36]}  Rd2 {[%clk 0:01:00]} 32. Qh4 {[%clk 0:00:20]}  Qc5 {[%clk 0:00:56]} 33. Rxd2 {[%clk 0:00:17]}  cxd2 {[%clk 0:00:53]} 34. Qe7 {[%clk 0:00:10]}  Qxe7 {[%clk 0:00:51]} 0-1


[Site "https://www.chess.com"]

[Event "Titled Tuesday Blitz May 31 Late 2022"]
[White "Bortnyk, Olexandr"]
[Black "Nakamura, Hikaru"]
[WhiteFideId "14120828"]
[BlackFideId "2016192"]
[WhiteElo "2723"]
[BlackElo "2850"]
[Result "0-1"]
[Round "09"]
[TimeControl "180+1"]
[Date "2022.05.31"]
[WhiteClock "0:00:01"]
[BlackClock "0:00:11"]

1. e4 {[%clk 0:03:00]}  e5 {[%clk 0:03:00]} 2. Bc4 {[%clk 0:03:00]}  Nf6 {[%clk 0:02:59]} 3. d3 {[%clk 0:03:00]}  c6 {[%clk 0:02:59]} 4. Nf3 {[%clk 0:03:01]}  d5 {[%clk 0:03:00]} 5. Bb3 {[%clk 0:03:01]}  Bb4+ {[%clk 0:03:00]} 6. Bd2 {[%clk 0:03:01]}  Bxd2+ {[%clk 0:03:01]} 7. Qxd2 {[%clk 0:03:02]}  Qd6 {[%clk 0:03:00]} 8. Nc3 {[%clk 0:02:49]}  O-O {[%clk 0:02:58]} 9. O-O {[%clk 0:02:11]}  Bg4 {[%clk 0:02:55]} 10. Qg5 {[%clk 0:02:01]}  Bxf3 {[%clk 0:02:47]} 11. gxf3 {[%clk 0:02:02]}  Nbd7 {[%clk 0:02:42]} 12. Kh1 {[%clk 0:02:01]}  h6 {[%clk 0:02:30]} 13. Qh4 {[%clk 0:02:00]}  a5 {[%clk 0:02:26]} 14. Rg1 {[%clk 0:01:58]}  Kh8 {[%clk 0:02:21]} 15. a3 {[%clk 0:01:51]}  Nc5 {[%clk 0:01:38]} 16. Ba2 {[%clk 0:01:43]}  Rad8 {[%clk 0:01:36]} 17. Rg2 {[%clk 0:01:28]}  Ne6 {[%clk 0:01:24]} 18. Rag1 {[%clk 0:01:28]}  Rg8 {[%clk 0:01:23]} 19. Ne2 {[%clk 0:01:05]}  Nh7 {[%clk 0:01:18]} 20. Ng3 {[%clk 0:00:55]}  g5 {[%clk 0:00:36]} 21. Nf5 {[%clk 0:00:40]}  gxh4 {[%clk 0:00:36]} 22. Rxg8+ {[%clk 0:00:41]}  Rxg8 {[%clk 0:00:36]} 23. Rxg8+ {[%clk 0:00:42]}  Kxg8 {[%clk 0:00:37]} 24. Nxd6 {[%clk 0:00:43]}  Nf4 {[%clk 0:00:32]} 25. Nf5 {[%clk 0:00:33]}  Kf8 {[%clk 0:00:24]} 26. Nxh4 {[%clk 0:00:24]}  Ng5 {[%clk 0:00:24]} 27. Kg1 {[%clk 0:00:25]}  h5 {[%clk 0:00:22]} 28. Kf1 {[%clk 0:00:22]}  Ke7 {[%clk 0:00:21]} 29. Nf5+ {[%clk 0:00:22]}  Ke6 {[%clk 0:00:21]} 30. Nh4 {[%clk 0:00:13]}  Kd6 {[%clk 0:00:21]} 31. b4 {[%clk 0:00:12]}  axb4 {[%clk 0:00:17]} 32. axb4 {[%clk 0:00:12]}  f6 {[%clk 0:00:17]} 33. Ke1 {[%clk 0:00:11]}  d4 {[%clk 0:00:17]} 34. Bb3 {[%clk 0:00:09]}  b6 {[%clk 0:00:17]} 35. Bg8 {[%clk 0:00:08]}  c5 {[%clk 0:00:17]} 36. bxc5+ {[%clk 0:00:07]}  bxc5 {[%clk 0:00:17]} 37. Bc4 {[%clk 0:00:07]}  Kc6 {[%clk 0:00:17]} 38. Ba6 {[%clk 0:00:06]}  Kb6 {[%clk 0:00:17]} 39. Bc8 {[%clk 0:00:06]}  Kb5 {[%clk 0:00:15]} 40. Kd2 {[%clk 0:00:04]}  c4 {[%clk 0:00:15]} 41. Bd7+ {[%clk 0:00:03]}  Kb4 {[%clk 0:00:15]} 42. dxc4 {[%clk 0:00:03]}  Kxc4 {[%clk 0:00:16]} 43. Be8 {[%clk 0:00:03]}  Kc5 {[%clk 0:00:16]} 44. Bd7 {[%clk 0:00:03]}  Nf7 {[%clk 0:00:12]} 45. Be8 {[%clk 0:00:03]}  Nd6 {[%clk 0:00:13]} 46. Bd7 {[%clk 0:00:02]}  Nc4+ {[%clk 0:00:13]} 47. Kd1 {[%clk 0:00:03]}  Kb4 {[%clk 0:00:13]} 48. Be8 {[%clk 0:00:02]}  Kc3 {[%clk 0:00:14]} 49. Ng6 {[%clk 0:00:03]}  Nb2+ {[%clk 0:00:14]} 50. Ke1 {[%clk 0:00:03]}  Kxc2 {[%clk 0:00:13]} 51. Nxf4 {[%clk 0:00:02]}  exf4 {[%clk 0:00:13]} 52. e5 {[%clk 0:00:03]}  d3 {[%clk 0:00:11]} 53. Bg6 {[%clk 0:00:01]}  fxe5 {[%clk 0:00:11]} 54. Kf1 {[%clk 0:00:01]}  Kc1 {[%clk 0:00:10]} 55. Bxd3 {[%clk 0:00:01]}  Nxd3 {[%clk 0:00:11]} 0-1


[Site "https://www.chess.com"]

[Event "Titled Tuesday Blitz May 31 Late 2022"]
[White "Bryakin, Mikhail"]
[Black "Hosseinzadeh, Nima"]
[WhiteFideId "4165314"]
[BlackFideId "12505323"]
[WhiteElo "2417"]
[BlackElo "2066"]
[Result "0-1"]
[Round "09"]
[TimeControl "180+1"]
[Date "2022.05.31"]
[WhiteClock "0:01:17"]
[BlackClock "0:00:14"]

1. e4 {[%clk 0:03:00]}  e5 {[%clk 0:02:58]} 2. d4 {[%clk 0:03:00]}  exd4 {[%clk 0:02:56]} 3. Qxd4 {[%clk 0:03:00]}  Nc6 {[%clk 0:02:56]} 4. Qd3 {[%clk 0:03:01]}  Nf6 {[%clk 0:02:55]} 5. Nc3 {[%clk 0:03:01]}  Bb4 {[%clk 0:02:55]} 6. Bg5 {[%clk 0:03:02]}  h6 {[%clk 0:02:53]} 7. Bd2 {[%clk 0:02:58]}  O-O {[%clk 0:02:53]} 8. O-O-O {[%clk 0:02:57]}  Re8 {[%clk 0:02:53]} 9. f3 {[%clk 0:02:57]}  d6 {[%clk 0:02:37]} 10. g4 {[%clk 0:02:57]}  Ne5 {[%clk 0:02:30]} 11. Qb5 {[%clk 0:02:56]}  a5 {[%clk 0:02:19]} 12. h3 {[%clk 0:02:50]}  c6 {[%clk 0:02:05]} 13. Qe2 {[%clk 0:02:49]}  b5 {[%clk 0:02:04]} 14. a3 {[%clk 0:02:48]}  Bc5 {[%clk 0:02:02]} 15. g5 {[%clk 0:02:48]}  Nh5 {[%clk 0:01:46]} 16. Qg2 {[%clk 0:02:48]}  b4 {[%clk 0:01:24]} 17. Na4 {[%clk 0:02:46]}  bxa3 {[%clk 0:01:23]} 18. b3 {[%clk 0:02:42]}  Bb4 {[%clk 0:01:16]} 19. c3 {[%clk 0:02:40]}  Be6 {[%clk 0:01:11]} 20. Kc2 {[%clk 0:02:36]}  Bxc3 {[%clk 0:01:02]} 21. Bxc3 {[%clk 0:02:34]}  Qb8 {[%clk 0:01:03]} 22. Bc4 {[%clk 0:02:13]}  Nxc4 {[%clk 0:00:39]} 23. bxc4 {[%clk 0:02:12]}  Bxc4 {[%clk 0:00:39]} 24. Qg4 {[%clk 0:02:12]}  g6 {[%clk 0:00:23]} 25. Ne2 {[%clk 0:01:55]}  Qb3+ {[%clk 0:00:17]} 26. Kd2 {[%clk 0:01:55]}  Qa2+ {[%clk 0:00:18]} 27. Nb2 {[%clk 0:01:51]}  axb2 {[%clk 0:00:17]} 28. Rb1 {[%clk 0:01:51]}  Bxe2 {[%clk 0:00:17]} 29. Kxe2 {[%clk 0:01:52]}  Qc4+ {[%clk 0:00:18]} 30. Kd2 {[%clk 0:01:52]}  d5 {[%clk 0:00:18]} 31. gxh6 {[%clk 0:01:49]}  d4 {[%clk 0:00:17]} 32. Bxb2 {[%clk 0:01:49]}  Rab8 {[%clk 0:00:17]} 33. Rhc1 {[%clk 0:01:49]}  Qa2 {[%clk 0:00:13]} 34. Qd7 {[%clk 0:01:38]}  Rxb2+ {[%clk 0:00:13]} 35. Rxb2 {[%clk 0:01:39]}  Qxb2+ {[%clk 0:00:14]} 36. Rc2 {[%clk 0:01:40]}  Qb4+ {[%clk 0:00:14]} 37. Kc1 {[%clk 0:01:40]}  Qe7 {[%clk 0:00:15]} 38. Qxc6 {[%clk 0:01:38]}  Kh7 {[%clk 0:00:14]} 39. Qd5 {[%clk 0:01:34]}  Nf4 {[%clk 0:00:14]} 40. Qxd4 {[%clk 0:01:33]}  Kxh6 {[%clk 0:00:13]} 41. h4 {[%clk 0:01:26]}  Qa3+ {[%clk 0:00:12]} 42. Kd2 {[%clk 0:01:24]}  Qxf3 {[%clk 0:00:13]} 43. Qf6 {[%clk 0:01:19]}  Qe2+ {[%clk 0:00:11]} 44. Kc1 {[%clk 0:01:19]}  Qe1+ {[%clk 0:00:12]} 45. Kb2 {[%clk 0:01:18]}  Rb8+ {[%clk 0:00:13]} 46. Ka3 {[%clk 0:01:17]}  Qb4+ {[%clk 0:00:13]} 47. Ka2 {[%clk 0:01:17]}  Qa4# {[%clk 0:00:14]} 0-1


[Site "https://www.chess.com"]

[Event "Titled Tuesday Blitz May 31 Late 2022"]
[White "Cruz Mendez, Jean Marco"]
[Black "Flynn, Jacob"]
[WhiteFideId "3526402"]
[BlackFideId "2509393"]
[WhiteElo "2064"]
[BlackElo "1896"]
[Result "1/2-1/2"]
[Round "09"]
[TimeControl "180+1"]
[Date "2022.06.01"]
[WhiteClock "0:00:35"]
[BlackClock "0:00:04"]

1. Nf3 {[%clk 0:02:59]}  Nf6 {[%clk 0:02:57]} 2. c4 {[%clk 0:02:58]}  c5 {[%clk 0:02:58]} 3. Nc3 {[%clk 0:02:58]}  Nc6 {[%clk 0:02:59]} 4. e3 {[%clk 0:02:58]}  e6 {[%clk 0:02:59]} 5. d4 {[%clk 0:02:59]}  d5 {[%clk 0:02:59]} 6. cxd5 {[%clk 0:02:59]}  Nxd5 {[%clk 0:02:59]} 7. Bb5 {[%clk 0:02:56]}  cxd4 {[%clk 0:02:53]} 8. exd4 {[%clk 0:02:55]}  Bd7 {[%clk 0:02:32]} 9. O-O {[%clk 0:02:53]}  Be7 {[%clk 0:02:23]} 10. Bd3 {[%clk 0:02:52]}  O-O {[%clk 0:02:13]} 11. a3 {[%clk 0:02:52]}  Rc8 {[%clk 0:02:12]} 12. Nxd5 {[%clk 0:02:42]}  exd5 {[%clk 0:02:12]} 13. Ne5 {[%clk 0:02:42]}  Nxe5 {[%clk 0:02:12]} 14. dxe5 {[%clk 0:02:43]}  d4 {[%clk 0:02:08]} 15. Bf4 {[%clk 0:02:35]}  Be6 {[%clk 0:02:06]} 16. Qf3 {[%clk 0:02:33]}  Qd7 {[%clk 0:02:02]} 17. h3 {[%clk 0:02:27]}  Rfd8 {[%clk 0:01:55]} 18. Rad1 {[%clk 0:02:26]}  g6 {[%clk 0:01:44]} 19. Qg3 {[%clk 0:02:14]}  Bf5 {[%clk 0:01:36]} 20. Bg5 {[%clk 0:02:13]}  Bxg5 {[%clk 0:01:24]} 21. Qxg5 {[%clk 0:02:14]}  Bxd3 {[%clk 0:01:23]} 22. Rxd3 {[%clk 0:02:14]}  Qe6 {[%clk 0:01:23]} 23. Rfd1 {[%clk 0:02:11]}  Rd5 {[%clk 0:01:23]} 24. f4 {[%clk 0:02:10]}  Rc2 {[%clk 0:01:04]} 25. R1d2 {[%clk 0:02:09]}  Rxd2 {[%clk 0:01:00]} 26. Rxd2 {[%clk 0:02:09]}  d3 {[%clk 0:01:01]} 27. Qg3 {[%clk 0:02:08]}  Qb6+ {[%clk 0:00:58]} 28. Qf2 {[%clk 0:02:08]}  Qa5 {[%clk 0:00:49]} 29. Qe3 {[%clk 0:02:07]}  Qb5 {[%clk 0:00:40]} 30. Kf2 {[%clk 0:02:07]}  Qc4 {[%clk 0:00:34]} 31. g3 {[%clk 0:02:05]}  b6 {[%clk 0:00:24]} 32. h4 {[%clk 0:01:54]}  Rd4 {[%clk 0:00:21]} 33. h5 {[%clk 0:01:49]}  gxh5 {[%clk 0:00:20]} 34. Qf3 {[%clk 0:01:49]}  Qc1 {[%clk 0:00:16]} 35. Qe3 {[%clk 0:01:42]}  Rd7 {[%clk 0:00:14]} 36. f5 {[%clk 0:01:38]}  Qh1 {[%clk 0:00:13]} 37. Qg5+ {[%clk 0:01:38]}  Kh8 {[%clk 0:00:11]} 38. f6 {[%clk 0:01:35]}  Qh2+ {[%clk 0:00:09]} 39. Kf3 {[%clk 0:01:35]}  Qh1+ {[%clk 0:00:09]} 40. Kf2 {[%clk 0:01:09]}  Qh2+ {[%clk 0:00:09]} 41. Ke3 {[%clk 0:01:03]}  Qg1+ {[%clk 0:00:10]} 42. Kf3 {[%clk 0:00:53]}  Qh1+ {[%clk 0:00:08]} 43. Rg2 {[%clk 0:00:42]}  Qf1+ {[%clk 0:00:05]} 44. Rf2 {[%clk 0:00:39]}  Qh1+ {[%clk 0:00:04]} 45. Ke3 {[%clk 0:00:36]}  Qc1+ {[%clk 0:00:04]} 46. Rd2 {[%clk 0:00:37]}  Qg1+ {[%clk 0:00:04]} 47. Kf3 {[%clk 0:00:35]}  Qh1+ {[%clk 0:00:04]} 1/2-1/2


[Site "https://www.chess.com"]

[Event "Titled Tuesday Blitz May 31 Late 2022"]
[White "Curtis, John"]
[Black "Song, Michael"]
[WhiteFideId "3200256"]
[BlackFideId "2613190"]
[WhiteElo "2203"]
[BlackElo "2274"]
[Result "0-1"]
[Round "09"]
[TimeControl "180+1"]
[Date "2022.06.01"]
[WhiteClock "0:00:05"]
[BlackClock "0:00:16"]

1. e4 {[%clk 0:03:00]}  e5 {[%clk 0:02:56]} 2. Nf3 {[%clk 0:02:59]}  Nc6 {[%clk 0:02:54]} 3. Bb5 {[%clk 0:02:58]}  Nf6 {[%clk 0:02:54]} 4. O-O {[%clk 0:02:57]}  Nxe4 {[%clk 0:02:49]} 5. d4 {[%clk 0:02:57]}  Nd6 {[%clk 0:02:49]} 6. Bxc6 {[%clk 0:02:57]}  dxc6 {[%clk 0:02:49]} 7. dxe5 {[%clk 0:02:56]}  Nf5 {[%clk 0:02:50]} 8. Qxd8+ {[%clk 0:02:56]}  Kxd8 {[%clk 0:02:51]} 9. Bg5+ {[%clk 0:02:54]}  Ke8 {[%clk 0:02:47]} 10. Rd1 {[%clk 0:02:53]}  Be6 {[%clk 0:02:47]} 11. Nc3 {[%clk 0:02:43]}  h6 {[%clk 0:02:47]} 12. Be3 {[%clk 0:02:24]}  Nxe3 {[%clk 0:02:46]} 13. fxe3 {[%clk 0:02:24]}  Be7 {[%clk 0:02:28]} 14. Nd4 {[%clk 0:02:22]}  Bd7 {[%clk 0:02:28]} 15. Kf2 {[%clk 0:02:17]}  Rd8 {[%clk 0:02:27]} 16. a3 {[%clk 0:02:15]}  a6 {[%clk 0:02:26]} 17. b4 {[%clk 0:02:14]}  c5 {[%clk 0:02:24]} 18. bxc5 {[%clk 0:02:10]}  Bxc5 {[%clk 0:02:25]} 19. Nd5 {[%clk 0:01:59]}  c6 {[%clk 0:02:21]} 20. Nf4 {[%clk 0:01:45]}  Bg4 {[%clk 0:02:12]} 21. Rd3 {[%clk 0:01:32]}  g5 {[%clk 0:02:12]} 22. Nfe2 {[%clk 0:01:31]}  Ke7 {[%clk 0:02:06]} 23. Rb1 {[%clk 0:01:31]}  Bc8 {[%clk 0:02:05]} 24. a4 {[%clk 0:01:25]}  a5 {[%clk 0:02:02]} 25. Nb3 {[%clk 0:01:16]}  Rxd3 {[%clk 0:01:45]} 26. cxd3 {[%clk 0:01:16]}  Bb4 {[%clk 0:01:45]} 27. d4 {[%clk 0:01:08]}  Bf5 {[%clk 0:01:43]} 28. Rc1 {[%clk 0:01:05]}  b5 {[%clk 0:01:27]} 29. Rxc6 {[%clk 0:00:53]}  bxa4 {[%clk 0:01:27]} 30. Nc5 {[%clk 0:00:51]}  a3 {[%clk 0:01:20]} 31. Nc1 {[%clk 0:00:41]}  Rc8 {[%clk 0:01:16]} 32. Ra6 {[%clk 0:00:37]}  Bxc5 {[%clk 0:01:15]} 33. dxc5 {[%clk 0:00:36]}  Rxc5 {[%clk 0:01:16]} 34. Nb3 {[%clk 0:00:36]}  Rxe5 {[%clk 0:01:08]} 35. Nxa5 {[%clk 0:00:31]}  Rc5 {[%clk 0:01:04]} 36. Nc6+ {[%clk 0:00:27]}  Rxc6 {[%clk 0:00:18]} 37. Rxc6 {[%clk 0:00:27]}  Be6 {[%clk 0:00:17]} 38. Ra6 {[%clk 0:00:25]}  a2 {[%clk 0:00:17]} 39. Ke1 {[%clk 0:00:23]}  Kf6 {[%clk 0:00:18]} 40. Ra5 {[%clk 0:00:22]}  Bd5 {[%clk 0:00:17]} 41. g3 {[%clk 0:00:21]}  Ke5 {[%clk 0:00:17]} 42. Kd2 {[%clk 0:00:21]}  f5 {[%clk 0:00:16]} 43. Kc1 {[%clk 0:00:20]}  Ke4 {[%clk 0:00:14]} 44. Kb2 {[%clk 0:00:20]}  h5 {[%clk 0:00:13]} 45. h4 {[%clk 0:00:17]}  g4 {[%clk 0:00:12]} 46. Ka1 {[%clk 0:00:16]}  Be6 {[%clk 0:00:09]} 47. Ra6 {[%clk 0:00:16]}  Bd5 {[%clk 0:00:08]} 48. Ra5 {[%clk 0:00:16]}  Bc4 {[%clk 0:00:06]} 49. Ra4 {[%clk 0:00:15]}  Kd3 {[%clk 0:00:07]} 50. Kb2 {[%clk 0:00:13]}  Be6 {[%clk 0:00:01]} 51. Ra6 {[%clk 0:00:10]}  Bd5 {[%clk 0:00:02]} 52. Ra5 {[%clk 0:00:10]}  Be4 {[%clk 0:00:01]} 53. Ra3+ {[%clk 0:00:08]}  Ke2 {[%clk 0:00:02]} 54. Rxa2 {[%clk 0:00:07]}  Kf3 {[%clk 0:00:03]} 55. Ra3 {[%clk 0:00:07]}  Kxg3 {[%clk 0:00:03]} 56. Kc3 {[%clk 0:00:07]}  Kxh4 {[%clk 0:00:04]} 57. Kd4 {[%clk 0:00:07]}  Kg3 {[%clk 0:00:05]} 58. Ra4 {[%clk 0:00:05]}  h4 {[%clk 0:00:06]} 59. Ra1 {[%clk 0:00:05]}  h3 {[%clk 0:00:07]} 60. Rg1+ {[%clk 0:00:05]}  Kf2 {[%clk 0:00:08]} 61. Rxg4 {[%clk 0:00:05]}  fxg4 {[%clk 0:00:08]} 62. Kxe4 {[%clk 0:00:05]}  h2 {[%clk 0:00:09]} 63. Kf4 {[%clk 0:00:06]}  h1=Q {[%clk 0:00:10]} 64. e4 {[%clk 0:00:06]}  Qf3+ {[%clk 0:00:10]} 65. Ke5 {[%clk 0:00:06]}  g3 {[%clk 0:00:11]} 66. Kd4 {[%clk 0:00:05]}  g2 {[%clk 0:00:12]} 67. e5 {[%clk 0:00:06]}  g1=Q {[%clk 0:00:13]} 68. Kc5 {[%clk 0:00:07]}  Qc1+ {[%clk 0:00:13]} 69. Kd6 {[%clk 0:00:07]}  Qd3+ {[%clk 0:00:13]} 70. Ke7 {[%clk 0:00:08]}  Qg5+ {[%clk 0:00:14]} 71. Ke6 {[%clk 0:00:08]}  Qc4+ {[%clk 0:00:13]} 72. Kd6 {[%clk 0:00:08]}  Qd4+ {[%clk 0:00:14]} 73. Ke6 {[%clk 0:00:08]}  Qgxe5+ {[%clk 0:00:14]} 74. Kf7 {[%clk 0:00:08]}  Qd7+ {[%clk 0:00:14]} 75. Kg6 {[%clk 0:00:06]}  Qeg7+ {[%clk 0:00:15]} 76. Kh5 {[%clk 0:00:05]}  Qh3# {[%clk 0:00:16]} 0-1


[Site "https://www.chess.com"]

[Event "Titled Tuesday Blitz May 31 Late 2022"]
[White "Demchenko, Anton"]
[Black "Bas Mas, Jose Joaquin"]
[WhiteFideId "4160258"]
[BlackFideId "22219064"]
[WhiteElo "2539"]
[BlackElo "2233"]
[Result "1-0"]
[Round "09"]
[TimeControl "180+1"]
[Date "2022.05.31"]
[WhiteClock "0:00:03"]
[BlackClock "0:00:02"]

1. e4 {[%clk 0:03:00]}  c5 {[%clk 0:03:00]} 2. Nf3 {[%clk 0:03:00]}  e6 {[%clk 0:02:59]} 3. d4 {[%clk 0:02:59]}  cxd4 {[%clk 0:03:00]} 4. Nxd4 {[%clk 0:02:59]}  a6 {[%clk 0:02:59]} 5. Bd3 {[%clk 0:02:59]}  Nc6 {[%clk 0:02:53]} 6. Nxc6 {[%clk 0:02:59]}  bxc6 {[%clk 0:02:54]} 7. Nd2 {[%clk 0:02:58]}  d5 {[%clk 0:02:51]} 8. O-O {[%clk 0:02:58]}  Nf6 {[%clk 0:02:49]} 9. Qe2 {[%clk 0:02:58]}  Qc7 {[%clk 0:02:47]} 10. f4 {[%clk 0:02:52]}  Bc5+ {[%clk 0:02:29]} 11. Kh1 {[%clk 0:02:52]}  O-O {[%clk 0:02:29]} 12. c4 {[%clk 0:02:48]}  a5 {[%clk 0:02:02]} 13. e5 {[%clk 0:02:37]}  Nd7 {[%clk 0:02:02]} 14. Nf3 {[%clk 0:02:38]}  h6 {[%clk 0:02:02]} 15. Bd2 {[%clk 0:02:32]}  a4 {[%clk 0:01:56]} 16. f5 {[%clk 0:02:24]}  exf5 {[%clk 0:01:49]} 17. Bxf5 {[%clk 0:02:24]}  Re8 {[%clk 0:01:49]} 18. cxd5 {[%clk 0:02:07]}  cxd5 {[%clk 0:01:25]} 19. Bf4 {[%clk 0:02:02]}  Nf8 {[%clk 0:01:20]} 20. Bxc8 {[%clk 0:01:57]}  Qxc8 {[%clk 0:01:17]} 21. Rac1 {[%clk 0:01:55]}  Ne6 {[%clk 0:01:17]} 22. Be3 {[%clk 0:01:54]}  Ra7 {[%clk 0:01:16]} 23. Bxc5 {[%clk 0:01:53]}  Nxc5 {[%clk 0:01:16]} 24. Nd4 {[%clk 0:01:34]}  Rc7 {[%clk 0:01:11]} 25. Nf5 {[%clk 0:01:34]}  Ne4 {[%clk 0:01:08]} 26. Rcd1 {[%clk 0:00:45]}  Rxe5 {[%clk 0:00:43]} 27. Qg4 {[%clk 0:00:45]}  Ng5 {[%clk 0:00:42]} 28. Rxd5 {[%clk 0:00:39]}  Rc1 {[%clk 0:00:16]} 29. Nxh6+ {[%clk 0:00:36]}  Kh7 {[%clk 0:00:16]} 30. Rdd1 {[%clk 0:00:37]}  Rxd1 {[%clk 0:00:09]} 31. Rxd1 {[%clk 0:00:28]}  Qxg4 {[%clk 0:00:07]} 32. Nxg4 {[%clk 0:00:28]}  Re2 {[%clk 0:00:07]} 33. h4 {[%clk 0:00:20]}  Ne4 {[%clk 0:00:06]} 34. Rb1 {[%clk 0:00:06]}  f5 {[%clk 0:00:05]} 35. Nh2 {[%clk 0:00:07]}  Kg6 {[%clk 0:00:03]} 36. Nf3 {[%clk 0:00:07]}  Kh5 {[%clk 0:00:03]} 37. Kh2 {[%clk 0:00:07]}  Kg4 {[%clk 0:00:03]} 38. b3 {[%clk 0:00:06]}  Nc3 {[%clk 0:00:02]} 39. Rf1 {[%clk 0:00:03]}  Nxa2 {[%clk 0:00:01]} 40. bxa4 {[%clk 0:00:03]}  Kh5 {[%clk 0:00:02]} 41. Nd4 {[%clk 0:00:03]}  Nc3 {[%clk 0:00:01]} 42. Rxf5+ {[%clk 0:00:03]}  Kh6 {[%clk 0:00:02]} 43. Nxe2 {[%clk 0:00:03]}  Nxe2 {[%clk 0:00:02]} 44. Rg5 {[%clk 0:00:03]} 1-0


[Site "https://www.chess.com"]

[Event "Titled Tuesday Blitz May 31 Late 2022"]
[White "Djabri,Massinas"]
[Black "Hardaway, Brewington"]
[WhiteFideId "7905726"]
[BlackFideId "30941849"]
[WhiteElo "1941"]
[BlackElo "1768"]
[Result "0-1"]
[Round "09"]
[TimeControl "180+1"]
[Date "2022.06.01"]
[WhiteClock "0:00:14"]
[BlackClock "0:01:07"]

1. d4 {[%clk 0:03:00]}  Nf6 {[%clk 0:02:42]} 2. Bf4 {[%clk 0:03:00]}  e6 {[%clk 0:02:41]} 3. e3 {[%clk 0:03:01]}  c5 {[%clk 0:02:39]} 4. Nc3 {[%clk 0:02:59]}  Nc6 {[%clk 0:02:39]} 5. Nb5 {[%clk 0:02:55]}  Nd5 {[%clk 0:02:38]} 6. Bd6 {[%clk 0:02:47]}  cxd4 {[%clk 0:02:32]} 7. exd4 {[%clk 0:02:43]}  a6 {[%clk 0:02:31]} 8. Bxf8 {[%clk 0:02:37]}  Kxf8 {[%clk 0:02:31]} 9. Nd6 {[%clk 0:02:36]}  Qa5+ {[%clk 0:02:30]} 10. c3 {[%clk 0:02:36]}  Nxc3 {[%clk 0:02:24]} 11. Qd2 {[%clk 0:02:21]}  Nd5 {[%clk 0:02:23]} 12. Qxa5 {[%clk 0:02:21]}  Nxa5 {[%clk 0:02:23]} 13. Rc1 {[%clk 0:02:20]}  Nc6 {[%clk 0:02:23]} 14. Nf3 {[%clk 0:02:17]}  Ke7 {[%clk 0:02:23]} 15. Nc4 {[%clk 0:02:13]}  d6 {[%clk 0:02:22]} 16. g3 {[%clk 0:02:10]}  Bd7 {[%clk 0:02:20]} 17. Bg2 {[%clk 0:02:10]}  Ncb4 {[%clk 0:02:18]} 18. O-O {[%clk 0:02:07]}  Nxa2 {[%clk 0:02:18]} 19. Ra1 {[%clk 0:02:00]}  Bb5 {[%clk 0:02:17]} 20. b3 {[%clk 0:01:53]}  Nac3 {[%clk 0:02:16]} 21. Rfe1 {[%clk 0:01:48]}  Rac8 {[%clk 0:02:14]} 22. Nfd2 {[%clk 0:01:46]}  Nb4 {[%clk 0:02:12]} 23. Bxb7 {[%clk 0:01:43]}  Rc7 {[%clk 0:02:09]} 24. Be4 {[%clk 0:01:40]}  Nxe4 {[%clk 0:02:08]} 25. Rxe4 {[%clk 0:01:41]}  d5 {[%clk 0:02:08]} 26. Rg4 {[%clk 0:01:35]}  dxc4 {[%clk 0:02:08]} 27. bxc4 {[%clk 0:01:36]}  Bxc4 {[%clk 0:02:08]} 28. Rc1 {[%clk 0:01:36]}  Rhc8 {[%clk 0:02:06]} 29. Rxg7 {[%clk 0:01:31]}  Bd5 {[%clk 0:02:06]} 30. Rxc7+ {[%clk 0:01:32]}  Rxc7 {[%clk 0:02:07]} 31. f4 {[%clk 0:01:31]}  Nd3 {[%clk 0:02:06]} 32. Kf1 {[%clk 0:01:30]}  Rc1+ {[%clk 0:02:06]} 33. Ke2 {[%clk 0:01:31]}  Nb2 {[%clk 0:02:05]} 34. Rxh7 {[%clk 0:01:30]}  Nc4 {[%clk 0:02:05]} 35. Nxc4 {[%clk 0:01:24]}  Bxc4+ {[%clk 0:02:05]} 36. Kd2 {[%clk 0:01:24]}  Ra1 {[%clk 0:02:05]} 37. h4 {[%clk 0:01:22]}  Ra2+ {[%clk 0:02:05]} 38. Kc3 {[%clk 0:01:22]}  Bd5 {[%clk 0:02:05]} 39. Rg7 {[%clk 0:01:17]}  Be4 {[%clk 0:02:05]} 40. h5 {[%clk 0:01:16]}  Ra5 {[%clk 0:02:02]} 41. g4 {[%clk 0:01:15]}  Kf8 {[%clk 0:01:59]} 42. h6 {[%clk 0:01:14]}  Bg6 {[%clk 0:01:59]} 43. Kb4 {[%clk 0:01:07]}  Rb5+ {[%clk 0:01:59]} 44. Kc4 {[%clk 0:01:07]}  Rb1 {[%clk 0:01:59]} 45. d5 {[%clk 0:01:01]}  Rc1+ {[%clk 0:01:58]} 46. Kb4 {[%clk 0:01:00]}  Rb1+ {[%clk 0:01:33]} 47. Kc3 {[%clk 0:00:57]}  Rf1 {[%clk 0:01:09]} 48. dxe6 {[%clk 0:00:45]}  Rxf4 {[%clk 0:01:08]} 49. exf7 {[%clk 0:00:20]}  Bxf7 {[%clk 0:01:09]} 50. g5 {[%clk 0:00:17]}  Rc4+ {[%clk 0:01:07]} 51. Kd3 {[%clk 0:00:17]}  Rc6 {[%clk 0:01:07]} 52. Kd4 {[%clk 0:00:15]}  a5 {[%clk 0:01:07]} 53. Ke5 {[%clk 0:00:13]}  a4 {[%clk 0:01:07]} 54. Kf5 {[%clk 0:00:14]}  a3 {[%clk 0:01:07]} 55. g6 {[%clk 0:00:13]}  Rxg6 {[%clk 0:01:07]} 56. Rxg6 {[%clk 0:00:14]}  Bxg6+ {[%clk 0:01:07]} 57. Kxg6 {[%clk 0:00:14]}  a2 {[%clk 0:01:07]} 0-1


[Site "https://www.chess.com"]